Cogmind - Beta 14 @@@ ROGUE MODE // 2024.09.14 @ 09:02:25 Player: raro Result: Destroyed by Y-45 Defender with Heavy Assault Rifle Performance ------------- Evolutions (1) 500 Regions Visited (3) 600 Robots Destroyed (4) 20 Value Destroyed (40) 40 Prototype IDs (0) 0 Alien Tech Used (0) 0 Bonus (0) 0 TOTAL SCORE: 1160 Bonus ------- None Cogmind --------- Core Integrity 0/400 Matter 300/300 Energy 100/100 System Corruption 0% Temperature Cool (9) Movement Core (100) Ox1 Location -9/Materials Parts ------- > --- POWER (1) -------- (None) > --- PROPULSION (3) --- (None) > --- UTILITY (3) ------ Small Storage Unit > --- WEAPON (2) ------- (None) > --- INVENTORY (8) ---- Medium Battery (150) Medium Matter Pod (82) Peak State ------------ > --- POWER ------------ (None) > --- PROPULSION ------- Aluminum Leg Aluminum Leg > --- UTILITY ---------- Targeting Computer Core Shielding > --- WEAPON ----------- Bore Cannon Mining Laser > --- INVENTORY -------- Light Ion Engine Small Storage Unit Medium Battery Terrain Scanner Utility Shielding [Rating: 10] Favorites ----------- Power Light Ion Engine Engine Light Ion Engine Propulsion Aluminum Leg Leg Aluminum Leg Hover Unit Improved Hover Unit Utility Small Storage Unit Device Terrain Scanner Storage Small Storage Unit Processor Targeting Computer Protection Core Shielding Weapon Small Laser Energy Gun Small Laser Ballistic Cannon Bore Cannon Special Weapon Mining Laser Impact Weapon Hammer Build | -11 -10 -10 -9 ------- Run | Yrd Mat Min Mat Slots Evolved 2 | . . . 2 Power . | . . . . Propulsion 1 | . . . 1 Utility 1 | . . . 1 Weapon . | . . . . Parts Attached 21 | 6 . 9 6 Power 4 | 1 . 2 1 Engine 4 | 1 . 2 1 Core . | . . . . Reactor . | . . . . Propulsion 4 | 2 . . 2 Treads . | . . . . Leg 2 | 2 . . . Wheel . | . . . . Hover 2 | . . . 2 Flight . | . . . . Utility 8 | 1 . 4 3 Device 2 | . . 1 1 Storage 2 | 1 . . 1 Processor 1 | . . 1 . Hackware . | . . . . Protection 3 | . . 2 1 Artifact . | . . . . Weapon 5 | 2 . 3 . Energy Gun 2 | 2 . . . Energy Cannon . | . . . . Ballistic Gun . | . . . . Ballistic Cannon 1 | . . 1 . Launcher . | . . . . Special Weapon 1 | . . 1 . Impact Weapon 1 | . . 1 . Slashing Weapon . | . . . . Piercing Weapon . | . . . . Special Melee Weapon . | . . . . Unidentified Prototypes . | . . . . Parts Lost 14 | . . 9 5 Power 2 | . . 1 1 Propulsion 4 | . . 2 2 Utility 4 | . . 2 2 Weapon 4 | . . 4 . Highest Loss Streak 8 | . . 8 5 To Critical Strikes . | . . . . Average Slot Usage (%) 82 | . 85 91 42 Engine 12 | . 14 13 8 Leg 23 | . 28 27 . Hover 1 | . . . 6 Device 2 | . . 1 8 Storage 8 | . 14 6 11 Processor 5 | . . 7 . Protection 9 | . . 11 8 Energy Gun 13 | . 28 14 . Special Weapon 4 | . . 6 . Peak Build Rating 10 | 6 6 10 8 Average Rating 5 | 3 6 6 4 On Entrance 3 | . 6 6 . Naked Turns 9 | . . 9 . Heaviest Build 14 | 13 13 14 10 Greatest Support 20 | 20 20 20 14 Greatest Overweight (x) 3 | . . . 3 Average Overweight (x) . | . . . 1 Largest Inventory Capacity 8 | 8 8 8 8 Average Capacity 6 | 6 8 6 8 Most Carried 5 | 3 1 5 4 Average Carried 2 | 1 . 3 1 Final Capacity 8 | 8 8 5 8 Final Carried 5 | 1 . 5 2 Class Distribution -------------------- 100% | Mutant Dominant Class ---------------- Mutant | -10/Materials Mutant | -10/Mines Mutant | -9/Materials Resources | -11 -10 -10 -9 ----------- Run | Yrd Mat Min Mat Matter Collected 403 | 161 . 134 108 Remotely . | . . . . Salvage Created 123 | . . 106 17 Parts 7 | . . 5 2 Haulers Intercepted . | . . . . Recyclers Shooed . | . . . . Parts Field Recycled . | . . . . Retrieved Matter . | . . . . Parts Self-Destructed . | . . . . Prevented . | . . . . Kills | -11 -10 -10 -9 ------- Run | Yrd Mat Min Mat Combat Hostiles Destroyed 4 | . . 3 1 Melee 1 | . . . 1 Guns 3 | . . 3 . Classes Destroyed 1 | . . 1 . Swarmer 4 | . . 3 1 Best Kill Streak 2 | . . 2 1 Combat Bots Only 2 | . . 2 1 Max Kills in Single Turn 1 | . . 1 1 Gunslinging . | . . . . Exploded . | . . . . Melee 1 | . . . 1 Uniques/NPCs Destroyed . | . . . . Combat | -11 -10 -10 -9 -------- Run | Yrd Mat Min Mat Hostile Shots Fired 153 | . 14 45 94 Missed 46 | . 7 10 29 Damage Taken 1372 | . 98 633 641 Core 613 | . . 207 406 Absorbed by Shields . | . . . . Redirected to Shielding 50 | . . 29 21 Core Remaining (%) 58 | 100 . 17 . Volleys Fired 25 | . . 25 . Largest 2 | . . 2 . Hottest 140 | . . 140 . Shots Fired 30 | . . 30 . Gun 25 | . . 25 . Cannon . | . . . . Launcher . | . . . . Special 5 | . . 5 . Kinetic . | . . . . Thermal 26 | . . 26 . Explosive . | . . . . Electromagnetic 4 | . . 4 . Robot Hit Streak 5 | . . 5 . Robot Miss Streak 4 | . . 4 . Penetration Max . | . . . . Secondary Targets . | . . . . Shots Hit Robots 12 | . . 12 . Core Hits 8 | . . 5 3 Critical Kills . | . . . . Critical Parts Destroyed . | . . . . Critical Strikes . | . . . . Melee Attacks . | . . . . Impact . | . . . . Slashing . | . . . . Piercing . | . . . . Sneak Attacks . | . . . . Combat Hostiles . | . . . . Follow-up Attacks . | . . . . Damage Inflicted 209 | . . 170 39 Guns 127 | . . 127 . Cannons . | . . . . Explosions 43 | . . 43 . Melee . | . . . . Ramming 39 | . . . 39 Kinetic . | . . . . Thermal 128 | . . 128 . Explosive . | . . . . Electromagnetic 42 | . . 42 . Impact . | . . . . Slashing . | . . . . Piercing . | . . . . Highest Corruption . | . . . . Average Corruption . | . . . . Corruption Purged . | . . . . Corruption Blocked . | . . . . Overload Shots . | . . . . Overflow Damage 13 | . . 13 . Projectiles . | . . . . Explosions 13 | . . 13 . Melee . | . . . . Knockbacks . | . . . . Impact . | . . . . Kinetic . | . . . . Secondary . | . . . . Self-Inflicted Damage 50 | . . 32 18 Shots 1 | . . 1 . Rammed 7 | . . . 7 Targets Rammed 7 | . . . 7 Kicked . | . . . . Crushed . | . . . . Highest Temperature 66 | . . 66 . Average Temperature 26 | . . 26 . Received Heat Transfer 189 | . 57 . 132 Siege Activations . | . . . . Robots Corrupted . | . . . . Combat Hostiles . | . . . . Parts Fried . | . . . . Impact Corruptions . | . . . . Robots Melted . | . . . . Combat Hostiles . | . . . . Parts Melted . | . . . . Heat Transferred 250 | . . 250 . Parts Sabotaged . | . . . . Parts Stolen . | . . . . Parts Stripped . | . . . . Power Chain Reactions 1 | . . 1 . Alert | -11 -10 -10 -9 ------- Run | Yrd Mat Min Mat Peak Influence 107 | . 15 107 95 Initial 5 | . . 5 . Average 27 | . 5 33 32 Maximum Alert Level . | . . . . Low Security (%) 100 | 100 100 100 100 Level 1 . | . . . . Level 2 . | . . . . Level 3 . | . . . . Level 4 . | . . . . Level 5 . | . . . . High Security . | . . . . Max Security . | . . . . Squads Dispatched 1 | . . . 1 Investigation . | . . . . Extermination . | . . . . Reinforcement 1 | . . . 1 Assault . | . . . . Garrison . | . . . . Intercept . | . . . . Searches Triggered . | . . . . Construction Impeded . | . . . . Haulers Reinforced . | . . . . Active Scanning Responses . | . . . . Cargo Convoy Interrupts . | . . . . Stealth | -11 -10 -10 -9 --------- Run | Yrd Mat Min Mat Distress Signals 3 | . 1 . 2 Communications Jammed . | . . . . Distress Signals . | . . . . Times Spotted 33 | . 9 7 17 Peak Tracking Total 9 | . 8 3 9 Tactical Retreats 4 | . . 1 3 Traps | -11 -10 -10 -9 ------- Run | Yrd Mat Min Mat Traps Triggered . | . . . . Indirectly . | . . . . Trap Hack Attempts . | . . . . Triggered . | . . . . Disarmed . | . . . . Reprogrammed . | . . . . Reused . | . . . . Traps Extracted . | . . . . Installed . | . . . . Triggered . | . . . . Machines | -11 -10 -10 -9 ---------- Run | Yrd Mat Min Mat Machines Disabled . | . . . . Max in Single Turn . | . . . . Machines Repaired . | . . . . Machines Dismantled . | . . . . Machines Sabotaged . | . . . . Overloaded Fab Kills . | . . . . Hacking | -11 -10 -10 -9 --------- Run | Yrd Mat Min Mat Machines Accessed 1 | . 1 . . Terminals . | . . . . Fabricators . | . . . . Repair Stations . | . . . . Recycling Units 1 | . 1 . . Scanalyzers . | . . . . Garrison Access . | . . . . Total Hacks 1 | . 1 . . Successful 1 | . 1 . . Failed . | . . . . Catastrophic . | . . . . Database Lockouts . | . . . . Manual . | . . . . Terminals . | . . . . Fabricators . | . . . . Repair Stations . | . . . . Recycling Units 1 | . 1 . . Scanalyzers . | . . . . Garrison Access . | . . . . Terminal Hacks . | . . . . Fabricator Hacks . | . . . . Repair Station Hacks . | . . . . Recycling Unit Hacks 1 | . 1 . . Recycle Component 1 | . 1 . . Scanalyzer . | . . . . Garrison Access Hacks . | . . . . Unauthorized Hacks . | . . . . Terminals . | . . . . Fabricators . | . . . . Repair Stations . | . . . . Recycling Units . | . . . . Scanalyzers . | . . . . Garrison Access . | . . . . Data Cores Recovered . | . . . . Used . | . . . . Hacking Detections . | . . . . Full Trace Events . | . . . . Feedback Events . | . . . . Feedback Blocked . | . . . . Robot Schematics Acquired . | . . . . Robots Built . | . . . . Authchips . | . . . . Time . | . . . . Total Robot Build Rating . | . . . . Part Schematics Acquired . | . . . . Parts Built . | . . . . Authchips . | . . . . Time . | . . . . Total Part Build Rating . | . . . . Parts Repaired . | . . . . Time . | . . . . Parts Recycled 1 | . 1 . . Recycled Matter . | . . . . Retrieved Matter . | . . . . Retrieved Components . | . . . . Parts Scanalyzed . | . . . . Part Schematics Acquired . | . . . . Parts Damaged . | . . . . Bothacking | -11 -10 -10 -9 ------------ Run | Yrd Mat Min Mat Used RIF Installer . | . . . . Robots Hacked . | . . . . Non-combat . | . . . . Combat . | . . . . Robot Hacks Applied . | . . . . Relay Couplers Released . | . . . . Fabnet Peak Effective % . | . . . . Robots Rewired . | . . . . Allies Hacked . | . . . . Hacks Repelled . | . . . . Allies | -11 -10 -10 -9 -------- Run | Yrd Mat Min Mat Total Allies 1 | . . 1 . Largest Group 1 | . . 1 . Highest-Rated Group 31 | . . 31 . Highest-Rated Ally 31 | . . 31 . Total Orders . | . . . . Ally Attacks . | . . . . Total Damage . | . . . . Kills . | . . . . Allies Corrupted . | . . . . Allies Melted . | . . . . Intel | -11 -10 -10 -9 ------- Run | Yrd Mat Min Mat Robot Analysis Total . | . . . . Derelict Logs Recovered 1 | . . 1 . Drone Launches . | . . . . Drone Recoveries . | . . . . Exploration | -11 -10 -10 -9 ------------- Run | Yrd Mat Min Mat Turns Passed 1205 | 86 129 794 196 Spaces Moved 948 | 67 108 600 173 Core 122 | 11 . 17 94 Treads . | . . . . Legs 747 | 56 108 583 . Wheels . | . . . . Hover 79 | . . . 79 Flight . | . . . . Fastest Speed 50 | 50 120 50 56 Average Speed 114 | 108 120 118 103 Slowest Speed 200 | 120 120 120 200 Overloaded Moves . | . . . . Propulsion Burnouts . | . . . . Robots Hopped . | . . . . Cave-ins Triggered . | . . . . Exploration Rate (%) 29 | 4 24 66 22 Regions Visited 3 Branch Regions 1 Pre-discovered Areas . | . . . . Known Exits Taken . | . . . . Unknown Exits Taken 3 | 1 1 1 . Scrap Searched 1 | . . 1 . Spaces Dug 4 | . . 4 . Terrain Destroyed 6 | . . 6 . Melee . | . . . . Projectile 4 | . . 4 . AOE 2 | . . 2 . Terrain Rammed . | . . . . Walls Destroyed . | . . . . Machines Disabled . | . . . . Actions | -11 -10 -10 -9 --------- Run | Yrd Mat Min Mat Total 1019 | 81 107 642 189 Wait . | . . . . Move 945 | 66 107 599 173 Hop . | . . . . Pick Up 18 | 8 . 7 3 Fast Attach 3 | . . 3 . Attach 13 | 6 . 1 6 Detach . | . . . . Swap 5 | . . 5 . Drop 3 | 1 . 2 . Fire 25 | . . 25 . Melee . | . . . . Ram 7 | . . . 7 Kick . | . . . . Crush . | . . . . Escape Stasis . | . . . . Rewire . | . . . . Trap . | . . . . Miscellaneous . | . . . . Route ------- -11/Scrapyard -10/Materials -10/Mines -9/Materials (discovered 1 exit: [*Mat]) History --------- Turn | Location | Event 15 | -11/Scrapyard | Discovered new exit (range 16) 87 | -11/Scrapyard | Entered Materials 203 | -10/Materials | Discovered new exit (range 11) 216 | -10/Materials | Entered Mines 269 | -10/Mines | Met a Derelict bent on vengeance 289 | -10/Mines | Learned Materials stockpile data 312 | -10/Mines | Build established: Mutant 618 | -10/Mines | Received a Mining Laser from a helpful Derelict 925 | -10/Mines | Discovered new exit (range 11) 988 | -10/Mines | Assembled infested the area 993 | -10/Mines | Assisted by a Guerilla fighting off Assembled 998 | -10/Mines | Core integrity fell below 50% 1004 | -10/Mines | Core integrity fell below 20% 1010 | -10/Mines | Entered Materials 1010 | -9/Materials | Evolved 2 slots: Propulsion x1, Utility x1 1032 | -9/Materials | Lost 8 parts (1p2n2u3w) 1184 | -9/Materials | Core integrity fell below 50% 1186 | -9/Materials | Lost 5 parts (1p2n2u) 1193 | -9/Materials | Discovered new exit (range 12) 1201 | -9/Materials | Core integrity fell below 20% 1206 | -9/Materials | Destroyed by Y-45 Defender with Heavy Assault Rifle Last Messages --------------- C-30 ARC bursts open, deploying its payload. S-10 Pest unfolds itself. Slammed into S-10 Pest. S-10 Pest destroyed. [Achievement: Fist Fight] W-16 Scout sends out distress signal. Slammed into S-10 Pest. Acquired 17 matter. Slammed into S-10 Pest. Imp. Hover Unit destroyed. Terrain Scanner destroyed. Slammed into S-10 Pest. Imp. Hover Unit destroyed. Lgt. Ion Engine destroyed. Acquired 91 matter. Utility Shielding destroyed. ALERT: Hostiles spotted, dispatching reinforcements to Terminal M006. S-10 Pest destroyed. EXIT=FOUND Map ----- +----------------------------------------------------+ | ????????????????????????????????? | | ????????????????????????????????? | | ????????????????????????????????? | | ????????????????????????????????? | | ????????????????????????????????? | | ????????????????????????????????? | | ????????????????????????????????? | | ????????????????????????????????? | | ????????????????????????????????? | | ?????????????? ???????????????? | | ????????????? ???????????????? | | ????????????? #??????????????? | | ?????????????# #??????????????? | | ?????????????# #??????????????? | | ?????????????# #??????????????? | | ?????????????# #??????????????? | | ?????????????# #??????????????? | | ?????????????# #??????????????? | | ?????????????# #??????????????? | | ?????????????# ############???? | | ?????????????# ## ###?? | | ????????????## ## """ """ + ??? | | ?????####+### # """ "Y" #???? | | ?????# # """ " " #???? | | ?????# < Ys g """ #???? | | ?????# @ # #???? | | ?????####+###g # #???? | | ???????? ?## ## #???? | | ????????"" ??# #####/######???? | | ???????""" ?# #???# #????????? | | ???????""" ?# ##### #########? | | ?????? ## #? | | ?????? """ + *% #? | | ????????"" ## = #? | | ?????????? #### #####+##### #? | | ?????????? #??# #??? ???# #? | | ??????????###??? #??? ""???# # | | ???????????????? #?? """??# + | | ???????????????? #?? """?## # | | ???????????????? #? + #? | | ???????????????? ??" " ## #? | | ?????????????????? "R" ?# #? | | ?????????????????? """ ???# #? | | ?????????????????# ??????# # | | ?????????????????#?????????# + | | ???????????????????????????# # | | ???????????????????????????# #? | | ??????????????????????????## ## | | ??????????????????????????# # | | ???????????????????????? ?# T" " | +----------------------------------------------------+ Best States ------------- Heat Dissipation 28 Energy Generation 10 Energy Capacity 250 Matter Stores 300 Matter Capacity 300 Sight Range 16 Terrain Scan Range 14 Terrain Scan Density 10 Core Shielding 20 Utility Shielding 33 Evasion (%) 55 Targeting Accuracy 5 Item Schematics ----------------- None Robot Schematics ------------------ None Fabricated ------------ Nothing Alien Tech Used ----------------- None Achievements -------------- Fist Fight Challenges ------------ None Game ------ Seed WeaponsSpacefoldBlaster Manual? 0 Play Time 00:18:22 Cumulative 2.8 hours Start 2024.09.14 @ 08:42:40 End 2024.09.14 @ 09:02:25 Sessions 1 Manual Loads 0 Difficulty Rogue Special Mode None Game No. 7 Rogue 7 Adventurer 0 Explorer 0 Win Type - Total 0 Types 0/0/0/0/0/0/0/0/0 Lore% 1 Gallery% 6 Achievement% 4 Wizard Run 0 Options --------- Layout 1 ASCII 0 Keyboard 0 Movement Arrows Keybinds 0 Fullscreen 1 Font 16/SmallcapsGlow Map View 55x38 Zoom Use 0% Tactical HUD 0 Map Filters NONE Filters NONE Steam 1 RUN: 63117567-ce3e-4f33-9822-bc8b3cd7ac50